bitfinex/quotes_BTCUSD_20251113
["timestamp","ask_amount","ask_price","bid_price","bid_amount"]
[1763041032858,0.81798276,102290.0,102280.0,0.00594377]
[1763041033073,0.82198276,102290.0,102280.0,0.00694377]
[1763041033276,0.22447005,102290.0,102280.0,0.00694377]
[1763041033480,0.4618446,102290.0,102280.0,0.00694377]
[1763041033685,0.72558328,102290.0,102280.0,0.00694377]
[1763041034111,0.70763576,102290.0,102280.0,0.00694377]
[1763041036858,0.20652253,102290.0,102280.0,0.00694377]
[1763041037024,0.63941961,102290.0,102280.0,0.00694377]
[1763041037237,0.70763576,102290.0,102280.0,0.00694377]
[1763041038656,0.80403524,102290.0,102280.0,0.00694377]
[1763041039109,1.60335106,102290.0,102280.0,0.00694377]
[1763041039224,1.62119089,102290.0,102280.0,0.00694377]
[1763041039433,1.20883636,102290.0,102280.0,0.00694377]
[1763041039631,1.18829381,102290.0,102280.0,0.00694377]
[1763041039883,1.23109381,102290.0,102280.0,0.00694377]
[1763041040152,1.22009381,102290.0,102280.0,0.00694377]
[1763041040338,1.65299089,102290.0,102280.0,0.00694377]
[1763041041338,1.66299088,102290.0,102280.0,0.00694377]
[1763041041556,1.65299089,102290.0,102280.0,0.00694377]
[1763041041688,1.66299088,102290.0,102280.0,0.00694377]
[1763041041926,1.683511,102290.0,102280.0,0.00694377]
[1763041042093,1.66299088,102290.0,102280.0,0.00694377]
[1763041042302,1.65295808,102290.0,102280.0,0.00694377]
[1763041042939,1.220061,102290.0,102280.0,0.00694377]
[1763041043279,0.64796444,102290.0,102280.0,0.00694377]
[1763041043484,1.5565586,102290.0,102280.0,0.00694377]
[1763041044237,1.5565586,102290.0,102250.0,1e-08]
[1763041044238,0.19557989,102260.0,102250.0,1e-08]
[1763041044451,0.56155969,102260.0,102250.0,1e-08]
[1763041044660,0.56155969,102260.0,102210.0,0.0002]
[1763041044661,0.19565642,102220.0,102210.0,0.0002]
[1763041044863,0.79873708,102220.0,102210.0,0.0002]
[1763041045129,0.04284,102220.0,102210.0,0.0002]
[1763041045345,0.323,102230.0,102220.0,0.19565642]
[1763041045561,0.69675839,102250.0,102220.0,0.19565642]
[1763041045774,0.47573708,102240.0,102230.0,0.19563728]
[1763041045985,0.06835592,102250.0,102230.0,0.19563728]
[1763041046192,0.11119592,102250.0,102230.0,0.19563728]
[1763041046349,0.544093,102250.0,102240.0,0.19561815]
[1763041046560,0.7396922,102250.0,102230.0,0.19563728]
[1763041046758,0.43289708,102240.0,102230.0,0.19563728]
[1763041046984,0.83609168,102250.0,102220.0,0.20543924]
[1763041047186,0.43289708,102240.0,102220.0,0.22543924]
[1763041047390,0.43289708,102240.0,102230.0,0.19563728]
[1763041047573,0.64049248,102250.0,102240.0,0.19561815]
[1763041047741,0.2075954,102250.0,102240.0,0.19561815]
[1763041047969,0.2075954,102250.0,102230.0,0.19563728]
[1763041048230,0.69673624,102240.0,102210.0,0.20565887]
[1763041048462,0.43289708,102230.0,102220.0,0.19564982]
[1763041048691,0.77321339,102240.0,102220.0,0.19564982]
[1763041048939,0.001,102240.0,102230.0,0.19563728]
[1763041049156,0.19561815,102240.0,102220.0,0.63832972]
[1763041049371,0.74872941,102250.0,102230.0,0.19563709]
[1763041049667,0.31183233,102250.0,102230.0,0.19563728]
[1763041049879,0.003,102240.0,102220.0,0.20543264]
[1763041050119,0.003,102240.0,102210.0,0.0002]
[1763041050120,0.62853436,102230.0,102210.0,0.0002]
[1763041050352,0.6285535,102220.0,102210.0,0.0002]
[1763041050825,0.99497224,102220.0,102210.0,0.00143603]
[1763041051232,0.56207516,102220.0,102210.0,0.00243603]
[1763041051449,0.99497224,102220.0,102210.0,0.00243603]
[1763041051678,0.51865642,102220.0,102210.0,0.00143603]
[1763041051900,0.26899768,102230.0,102210.0,0.19711159]
[1763041051901,0.50625748,102230.0,102210.0,0.19711159]
[1763041052144,0.001,102220.0,102210.0,0.19787556]
[1763041052360,0.001,102220.0,102210.0,0.0022]
[1763041052583,0.3118382,102230.0,102210.0,0.19787556]
[1763041052808,0.1162004,102230.0,102220.0,0.19565642]
[1763041053041,0.74473536,102230.0,102210.0,0.19787505]
[1763041053258,0.74473536,102230.0,102210.0,0.19587505]
[1763041053493,0.74473536,102230.0,102210.0,0.19587473]
[1763041053709,0.6315535,102220.0,102210.0,0.0002]
[1763041053926,0.6159956,102220.0,102210.0,0.0002]
[1763041054136,1.04589268,102220.0,102210.0,0.0002]
[1763041054546,0.8360797,102220.0,102210.0,0.0012]
[1763041054772,1.03173612,102220.0,102210.0,0.0012]
[1763041054975,1.0360667,102220.0,102210.0,0.0002]
[1763041055207,1.0390667,102220.0,102210.0,0.0002]
[1763041055381,1.0420667,102220.0,102210.0,0.0002]
[1763041055585,0.52465642,102220.0,102210.0,0.0002]
[1763041055813,1.10323741,102220.0,102210.0,0.0002]
[1763041056096,1.19963689,102220.0,102210.0,0.0002]
[1763041057381,0.68222661,102220.0,102210.0,0.0002]
[1763041057611,1.19963689,102220.0,102210.0,0.0002]
[1763041057971,1.24247689,102220.0,102210.0,0.0002]
[1763041058173,0.68222661,102220.0,102210.0,0.0002]
[1763041058489,0.72506661,102220.0,102210.0,0.0002]
[1763041058849,1.24247689,102220.0,102210.0,0.0002]
[1763041059271,0.62740413,102220.0,102210.0,0.0002]
[1763041059451,0.64793918,102220.0,102210.0,0.0002]
[1763041059872,1.14481441,102220.0,102210.0,0.0002]
[1763041060414,1.16536505,102220.0,102210.0,0.0002]
[1763041060827,1.12194631,102220.0,102210.0,0.0002]
[1763041061045,1.21834579,102220.0,102210.0,0.0002]
[1763041061252,1.26176453,102220.0,102210.0,0.0002]
[1763041061466,0.74435425,102220.0,102210.0,0.0002]
[1763041061672,1.26176453,102220.0,102210.0,0.0002]
[1763041062318,1.12252505,102220.0,102210.0,0.0002]
[1763041062518,1.20049775,102220.0,102210.0,0.0002]
[1763041062734,0.68308747,102220.0,102210.0,0.0002]
[1763041062951,0.60457603,102220.0,102210.0,0.00143603]
[1763041063159,1.10143567,102220.0,102210.0,0.00143603]
[1763041063460,1.26180449,102220.0,102210.0,0.00143603]
[1763041063663,0.74439421,102220.0,102210.0,0.00143603]
[1763041063867,1.21892449,102220.0,102210.0,0.00143603]
[1763041064083,1.26180449,102220.0,102210.0,0.00143603]
[1763041064747,1.16540501,102220.0,102210.0,0.00143603]
[1763041065167,1.12252501,102220.0,102210.0,0.00143603]
[1763041065378,1.16536501,102220.0,102210.0,0.00143603]
[1763041066016,1.12194627,102220.0,102210.0,0.00143603]
[1763041067313,0.60453599,102220.0,102210.0,0.00143603]
[1763041067744,0.04430257,102220.0,102210.0,0.00143603]
[1763041067969,0.02375197,102220.0,102210.0,0.21711159]
[1763041068183,0.02375197,102220.0,102210.0,0.49709723]
[1763041068386,0.28245711,102220.0,102210.0,0.00143603]
[1763041068786,0.02375197,102220.0,102210.0,0.00143603]
[1763041069012,0.28245711,102220.0,102210.0,0.19711159]
[1763041069169,0.02375197,102220.0,102210.0,0.19711159]
[1763041069379,0.02375197,102220.0,102210.0,0.21711159]
[1763041069601,0.02375197,102220.0,102210.0,0.2383921]
[1763041069761,0.02375197,102220.0,102210.0,0.21711159]
[1763041070139,0.02375197,102220.0,102210.0,0.19711159]
[1763041071208,0.006,102220.0,102210.0,0.47581673]
[1763041071428,0.006,102220.0,102210.0,0.55408313]
[1763041072062,0.006,102220.0,102210.0,0.29537799]
[1763041072274,0.003,102220.0,102210.0,0.6333448]
[1763041072514,0.004,102220.0,102210.0,0.6333448]
[1763041072733,0.004,102220.0,102210.0,0.6133448]
[1763041072939,0.004,102220.0,102210.0,0.89204994]
[1763041072940,0.003,102220.0,102210.0,0.89204994]
[1763041073351,0.61154613,102270.0,102250.0,0.19558192]
[1763041073352,0.02063685,102270.0,102250.0,0.19558192]
[1763041073552,0.27662587,102270.0,102260.0,0.19557989]
[1763041073754,0.27662587,102270.0,102250.0,0.19604824]
[1763041073755,0.49282548,102270.0,102250.0,0.19604824]
[1763041073962,0.01792073,102270.0,102260.0,0.19557989]
[1763041074378,0.01792073,102270.0,102260.0,0.21557989]
[1763041074590,0.01792073,102270.0,102260.0,0.45428503]
[1763041074798,6.28429236,102300.0,102290.0,0.19552253]
[1763041074799,6.0,102300.0,102290.0,0.19552253]
[1763041075005,6.03856106,102300.0,102290.0,0.19552253]
[1763041075242,6.2972662,102300.0,102280.0,0.19554165]
[1763041075456,6.27662553,102300.0,102290.0,0.19552253]
[1763041075660,6.01792039,102300.0,102290.0,0.21552253]
[1763041075869,6.01792039,102300.0,102290.0,0.19552253]
[1763041076078,6.0180606,102300.0,102290.0,0.19552253]
[1763041076337,6.0180606,102300.0,102280.0,0.29846798]
[1763041076541,6.0180606,102300.0,102290.0,0.19552253]
[1763041076748,6.21356462,102300.0,102280.0,0.23838165]
[1763041076963,6.27816438,102300.0,102290.0,0.19552253]
[1763041077168,6.28216438,102300.0,102290.0,0.19652253]
[1763041077525,6.83277242,102300.0,102290.0,0.001]
[1763041077866,6.91903116,102300.0,102290.0,0.001]
[1763041078101,6.72662088,102300.0,102290.0,0.001]
[1763041078435,7.24403116,102300.0,102290.0,0.001]
[1763041078844,6.88892654,102300.0,102290.0,0.001]
[1763041079056,7.14763168,102300.0,102290.0,0.001]
[1763041081155,7.16818593,102300.0,102290.0,0.001]
[1763041081311,7.14763168,102300.0,102290.0,0.001]
[1763041081880,6.6302214,102300.0,102290.0,0.001]
[1763041082089,7.14763168,102300.0,102290.0,0.001]
[1763041082455,7.24403116,102300.0,102290.0,0.001]
[1763041082678,0.19557989,102260.0,102250.0,0.00024705]
[1763041082878,0.75579017,102260.0,102250.0,0.00024705]
[1763041083145,1.14003583,102260.0,102250.0,0.00024705]
[1763041083997,1.16056786,102260.0,102250.0,0.00071337]
[1763041084200,1.20745681,102260.0,102250.0,0.00271337]
[1763041084848,1.16056786,102260.0,102250.0,0.00071337]
[1763041085051,1.14003583,102260.0,102250.0,0.00071337]
[1763041085262,1.14403583,102260.0,102250.0,0.00071337]
[1763041085633,0.94845594,102260.0,102250.0,0.00071337]
[1763041085853,1.14403583,102260.0,102250.0,0.00071337]
[1763041086028,1.24043531,102260.0,102250.0,0.00071337]
[1763041087055,1.10123583,102260.0,102250.0,0.00071337]
[1763041087280,0.88532686,102260.0,102250.0,0.00071337]
[1763041087692,1.144032,102260.0,102250.0,0.00071337]
[1763041088112,1.150032,102260.0,102250.0,0.00171337]
[1763041088270,1.146032,102260.0,102250.0,0.00171337]
[1763041088468,1.23843148,102260.0,102250.0,0.00071337]
[1763041089866,1.26297912,102260.0,102250.0,0.00071337]
[1763041090285,1.27297911,102260.0,102250.0,0.00071337]
[1763041090497,0.56207516,102220.0,102210.0,0.0002]
[1763041090718,0.65223138,102220.0,102210.0,0.0002]
[1763041090958,0.32346727,102220.0,102210.0,0.0002]
[1763041091164,0.04326727,102220.0,102210.0,0.19587556]
[1763041091374,0.49762883,102220.0,102210.0,0.0002]
[1763041091585,0.00046727,102220.0,102210.0,0.25890514]
[1763041091793,0.00046727,102220.0,102210.0,0.19687556]
[1763041091999,0.04326727,102220.0,102210.0,0.19687556]
[1763041092211,0.04326727,102220.0,102210.0,0.19887556]
[1763041092408,0.00046727,102220.0,102210.0,0.21887556]
[1763041092827,0.00046727,102220.0,102210.0,0.19887556]
[1763041093247,0.25917241,102220.0,102210.0,0.19887556]
[1763041093459,0.76042292,102220.0,102210.0,0.0032]
[1763041093911,0.50171778,102220.0,102210.0,0.0032]
[1763041094128,0.76042292,102220.0,102210.0,0.0022]
[1763041094325,0.24301264,102220.0,102210.0,0.0022]
[1763041094526,0.76342292,102220.0,102210.0,0.0002]
[1763041094737,1.13084166,102220.0,102210.0,0.0002]
[1763041094910,0.67409285,102220.0,102210.0,0.0002]
[1763041095117,0.54098516,102220.0,102210.0,0.0002]
[1763041095360,0.82466883,102220.0,102210.0,0.0002]
[1763041096282,1.12679271,102220.0,102210.0,0.0002]
[1763041096498,0.00446727,102220.0,102210.0,0.19686445]
[1763041097914,0.00446727,102220.0,102210.0,0.21686445]
[1763041098119,0.00446727,102220.0,102210.0,0.19686445]
[1763041098734,0.00446727,102220.0,102210.0,0.28627483]
[1763041098935,0.00446727,102220.0,102210.0,0.54497997]
[1763041099147,0.00446727,102220.0,102210.0,0.28627483]
[1763041099346,0.00446727,102220.0,102210.0,0.26627483]
[1763041099553,0.00446727,102220.0,102210.0,0.60324637]
[1763041099781,0.00146727,102220.0,102210.0,0.62324637]
[1763041100191,0.00046727,102220.0,102210.0,0.62324637]
[1763041100382,0.00046727,102220.0,102210.0,0.62424637]
[1763041100611,1e-08,102220.0,102210.0,0.62424637]
[1763041100753,1e-08,102220.0,102210.0,0.88195151]
[1763041100959,1e-08,102220.0,102210.0,0.62324637]
[1763041101159,1e-08,102220.0,102210.0,0.62524637]
[1763041101404,1e-08,102220.0,102210.0,0.62424637]
[1763041101951,1e-08,102220.0,102210.0,0.62624637]
[1763041102711,1e-08,102220.0,102210.0,1.20695151]
[1763041102916,0.00100001,102220.0,102210.0,1.20795151]
[1763041103142,1e-08,102220.0,102210.0,1.21195151]
[1763041103354,1e-08,102220.0,102210.0,1.2219515]
[1763041103951,0.81993723,102280.0,102260.0,0.19557989]
[1763041104155,0.04264,102280.0,102270.0,0.19556077]
[1763041104589,0.30134514,102280.0,102270.0,0.19556077]
[1763041104950,0.33837031,102290.0,102280.0,0.19554165]
[1763041105152,0.62025176,102290.0,102280.0,0.19554165]
[1763041105380,0.19554165,102280.0,102270.0,0.02]
[1763041105559,0.04433895,102290.0,102280.0,0.19554165]
[1763041105920,0.30304409,102290.0,102280.0,0.19554165]
[1763041106034,0.49856662,102290.0,102270.0,0.19556047]
[1763041106238,0.25870514,102280.0,102270.0,0.19556077]
[1763041106542,0.49856662,102290.0,102270.0,0.19556077]
[1763041106735,0.001,102280.0,102270.0,0.23565273]
[1763041106911,0.001,102280.0,102270.0,0.21556077]
[1763041107119,0.25970514,102280.0,102270.0,0.21556077]
[1763041107322,0.51841028,102280.0,102270.0,0.02]
[1763041107528,0.51841028,102280.0,102240.0,0.20536569]
[1763041107529,0.19557794,102270.0,102240.0,0.20536569]
[1763041107691,0.4542852,102260.0,102250.0,0.19559902]
[1763041107892,0.19556447,102270.0,102250.0,0.19559902]
[1763041108093,0.45824679,102280.0,102260.0,0.19557989]
[1763041108300,0.50104679,102280.0,102260.0,0.19557989]
[1763041108516,0.50104679,102280.0,102270.0,0.19556077]
[1763041108713,0.30550514,102280.0,102270.0,0.19556077]
[1763041109350,0.001,102280.0,102270.0,0.19556077]
[1763041109588,0.53403718,102290.0,102270.0,0.19556077]
[1763041109589,0.00153895,102290.0,102280.0,0.19554165]
[1763041110048,0.45576662,102290.0,102270.0,0.23836077]
[1763041110288,0.26024409,102290.0,102280.0,0.19554165]
[1763041110448,0.5521661,102290.0,102270.0,0.23836077]
[1763041110652,0.004,102280.0,102270.0,0.23936077]
[1763041110854,0.003,102280.0,102270.0,0.23936077]
[1763041111075,0.72272901,102280.0,102250.0,0.2053783]
[1763041111278,0.25870514,102260.0,102250.0,0.2053783]
[1763041111494,0.45426717,102270.0,102250.0,0.2053783]
[1763041111738,0.45426717,102270.0,102240.0,0.24841424]
[1763041111739,0.19556203,102270.0,102240.0,0.24841424]
[1763041111896,0.19556203,102270.0,102250.0,0.19559902]
[1763041112108,0.19556077,102270.0,102260.0,0.19557989]
[1763041112311,0.50332276,102270.0,102250.0,0.19559902]
[1763041112874,0.45426591,102270.0,102250.0,0.21559902]
[1763041113077,0.19556077,102270.0,102250.0,0.21559902]
[1763041113287,0.45426591,102270.0,102250.0,0.21559902]
[1763041113481,0.25870514,102270.0,102260.0,0.19557989]
[1763041113754,0.50682387,102280.0,102260.0,0.19557989]
[1763041113963,0.26070514,102270.0,102260.0,0.23767578]
[1763041114171,0.002,102270.0,102260.0,0.23767578]
[1763041114377,0.23834165,102280.0,102260.0,0.23767578]
[1763041114588,0.0428,102280.0,102270.0,0.19556077]
[1763041115033,0.0428,102280.0,102270.0,0.21556077]
[1763041115405,0.23834165,102280.0,102260.0,0.23767578]
[1763041115606,0.49704679,102280.0,102260.0,0.19557989]
[1763041115822,0.001,102270.0,102260.0,0.19557989]
[1763041116240,0.77876662,102290.0,102280.0,0.19554165]
[1763041116445,0.004,102280.0,102270.0,0.19556077]
[1763041116648,0.004,102280.0,102270.0,0.21556077]
[1763041116851,0.89979409,102290.0,102270.0,0.19556077]
[1763041117052,1.09194759,102290.0,102280.0,0.19554165]
[1763041117261,1.09194652,102290.0,102270.0,0.21556077]
[1763041117669,1.09194652,102290.0,102270.0,0.19556077]
[1763041117891,0.36729895,102290.0,102280.0,0.19554165]
[1763041118298,0.32453895,102290.0,102280.0,0.21554165]
[1763041118518,0.36729895,102290.0,102280.0,0.21554165]
[1763041118764,0.001,102280.0,102270.0,0.19555917]
[1763041118995,0.62850691,102280.0,102260.0,0.20535888]
[1763041119214,0.64508788,102290.0,102280.0,0.19554165]
[1763041119440,0.05029895,102290.0,102280.0,0.19554165]
[1763041119693,0.04829895,102290.0,102280.0,0.19554165]
[1763041119932,0.04429895,102290.0,102280.0,0.19554165]
[1763041120127,0.04433895,102290.0,102280.0,0.19554165]
[1763041120346,0.00153895,102290.0,102280.0,0.19554165]
[1763041120554,0.19706148,102290.0,102270.0,0.23936077]
[1763041120758,0.00353895,102290.0,102280.0,0.19554165]
[1763041121169,0.00753895,102290.0,102280.0,0.19654165]
[1763041121372,0.20306148,102290.0,102280.0,0.19654165]
[1763041121557,0.00753895,102290.0,102280.0,0.19654165]
[1763041121824,0.00553895,102290.0,102280.0,0.19654165]
[1763041122147,0.20206148,102290.0,102280.0,0.19654165]
[1763041122355,0.00153895,102290.0,102280.0,0.19554165]
[1763041122636,0.63002674,102290.0,102270.0,0.23836077]
[1763041122840,0.73042622,102290.0,102280.0,0.001]
[1763041123052,0.77322622,102290.0,102280.0,0.001]
[1763041123496,0.77322622,102290.0,102260.0,0.24815888]
[1763041123497,0.19555565,102280.0,102260.0,0.19557899]
[1763041123707,0.19555565,102280.0,102260.0,0.19557989]
[1763041123918,0.62852091,102280.0,102270.0,0.001]
[1763041124344,0.7188286,102280.0,102270.0,0.001]
[1763041124554,0.19558198,102270.0,102250.0,0.19559902]
[1763041124776,0.23834198,102270.0,102250.0,0.21559902]
[1763041124983,0.23834198,102270.0,102250.0,0.19559902]
[1763041125647,0.23834198,102270.0,102250.0,0.21559902]
[1763041125854,0.19557989,102260.0,102250.0,0.19559902]
[1763041126415,0.33415904,102270.0,102250.0,0.19559902]
[1763041126618,0.67130724,102270.0,102250.0,0.19659902]
[1763041126993,0.67130724,102270.0,102250.0,0.21659902]
[1763041127370,0.19557989,102260.0,102250.0,0.19759902]
[1763041127529,0.67130724,102270.0,102250.0,0.19759902]
[1763041127956,0.62854515,102260.0,102250.0,0.001]
[1763041128313,0.74957364,102270.0,102250.0,0.19659902]
[1763041128531,0.84595211,102270.0,102250.0,0.19859902]
[1763041128749,0.74955263,102270.0,102250.0,0.19659902]
[1763041128960,0.74955263,102270.0,102250.0,0.19559902]
[1763041129174,0.67128603,102270.0,102250.0,0.19659902]
[1763041129380,0.67128603,102270.0,102250.0,0.19559902]
[1763041129587,0.67128603,102270.0,102260.0,0.19557989]
[1763041129804,0.002,102270.0,102260.0,0.62854515]
[1763041130007,0.005,102270.0,102260.0,0.62854515]
[1763041130678,0.002,102270.0,102260.0,0.62854515]
[1763041130897,0.004,102270.0,102260.0,0.60854515]
[1763041131145,0.002,102270.0,102260.0,0.17557989]
[1763041131373,0.002,102270.0,102260.0,0.19557989]
[1763041131577,0.004,102270.0,102260.0,0.19557989]
[1763041131823,0.002,102270.0,102260.0,0.19557989]
[1763041132119,0.002,102270.0,102260.0,0.67293904]
[1763041132361,0.00153895,102290.0,102280.0,0.19554165]
[1763041132557,0.00153895,102290.0,102270.0,0.19556077]
[1763041132558,0.23982148,102290.0,102270.0,0.19556077]
[1763041132729,0.25779161,102290.0,102270.0,0.19556077]
[1763041133140,0.62850691,102280.0,102260.0,0.19657982]
[1763041133354,0.64648064,102280.0,102270.0,0.19556077]
[1763041133556,0.21351538,102280.0,102270.0,0.19556077]
[1763041134176,0.21351538,102280.0,102260.0,0.19557982]
[1763041134603,0.21351538,102280.0,102270.0,0.19556077]
[1763041134807,0.01797373,102280.0,102270.0,0.19556077]
[1763041135036,0.02224791,102290.0,102280.0,0.19554165]
[1763041135263,0.25779991,102290.0,102280.0,0.19554165]
[1763041135496,0.06227738,102290.0,102280.0,0.19554165]
[1763041135929,0.04429895,102290.0,102280.0,0.19554165]
[1763041136140,0.00353895,102290.0,102280.0,0.19554165]
[1763041136345,0.24482148,102290.0,102280.0,0.19654165]
[1763041136551,0.04929895,102290.0,102280.0,0.19654165]
[1763041136781,0.14569843,102290.0,102280.0,0.19654165]
[1763041136969,0.14569843,102290.0,102280.0,0.21654165]
[1763041137183,0.04929895,102290.0,102280.0,0.21654165]
[1763041137395,0.00653895,102290.0,102280.0,0.19654165]
[1763041137609,0.00653895,102290.0,102280.0,0.62950691]
[1763041138059,0.00653895,102290.0,102280.0,0.64950691]
[1763041138273,0.00653895,102290.0,102280.0,0.31294113]
[1763041138485,0.00453895,102290.0,102280.0,0.74590639]
[1763041138924,0.00153895,102290.0,102280.0,0.74690639]
[1763041139125,0.00153895,102290.0,102280.0,1.06990639]
[1763041139344,0.00153895,102290.0,102280.0,1.07090639]
[1763041139556,0.00153895,102290.0,102280.0,0.61794113]
[1763041139773,0.00153895,102290.0,102280.0,1.05090639]
[1763041139986,0.00153895,102290.0,102280.0,1.07090639]
[1763041140398,0.00153895,102290.0,102280.0,1.52953662]
[1763041140640,6.0,102300.0,102290.0,0.19552253]
[1763041140851,6.0,102300.0,102290.0,0.84601382]
[1763041141276,6.0,102300.0,102290.0,0.77601382]
[1763041141486,6.0,102300.0,102290.0,0.79601382]
[1763041141699,6.0,102300.0,102290.0,1.11901382]
[1763041142147,6.0,102300.0,102290.0,0.51128253]
[1763041142366,6.0,102300.0,102290.0,0.51228253]
[1763041142587,6.001,102300.0,102290.0,0.94524779]
[1763041142801,6.001,102300.0,102290.0,0.96424779]
[1763041143007,6.0,102300.0,102290.0,0.94424779]
[1763041143225,6.0,102300.0,102290.0,0.60768201]
[1763041143427,5.997008,102300.0,102290.0,1.06164727]
[1763041143627,5.997008,102300.0,102290.0,0.30568201]
[1763041143837,5.997008,102300.0,102290.0,0.26754893]
[1763041144256,5.997008,102300.0,102290.0,0.14852253]
[1763041144499,6.19251142,102300.0,102290.0,0.003]
[1763041144670,6.66819668,102300.0,102290.0,0.003]
[1763041144878,6.68611923,102300.0,102290.0,0.003]
[1763041145081,6.78251871,102300.0,102290.0,0.003]
[1763041145290,6.78251871,102300.0,102290.0,0.002]
[1763041145507,6.05765055,102300.0,102280.0,0.19554165]
[1763041145715,6.0437747,102300.0,102290.0,0.19552253]
[1763041145924,6.0010547,102300.0,102290.0,0.21552253]
[1763041146131,6.0010547,102300.0,102290.0,0.19552253]
[1763041146353,5.9980547,102300.0,102290.0,0.21552253]
[1763041146560,5.9980547,102300.0,102290.0,0.19552253]
[1763041146764,6.0000547,102300.0,102290.0,0.69120779]
[1763041146997,6.0000547,102300.0,102290.0,0.67120779]
[1763041147174,6.0000547,102300.0,102290.0,0.77988273]
[1763041147389,6.0000547,102300.0,102290.0,0.83814913]
[1763041147607,6.0000547,102300.0,102290.0,0.23824253]
[1763041147829,6.0000547,102300.0,102290.0,0.33650893]
[1763041148038,5.9990547,102300.0,102290.0,0.33650893]
[1763041148274,5.9970547,102300.0,102290.0,0.31650893]
[1763041148493,6.2919576,102300.0,102290.0,0.001]
[1763041148764,6.72492286,102300.0,102290.0,0.001]
[1763041148986,6.2919576,102300.0,102290.0,0.001]
[1763041149211,6.72192286,102300.0,102290.0,0.001]
[1763041149435,0.19552253,102290.0,102280.0,0.19554165]
[1763041149655,0.28513148,102290.0,102280.0,0.19554165]
[1763041149890,0.28513148,102290.0,102260.0,0.65654721]
[1763041149891,0.19554165,102280.0,102260.0,0.20535881]
[1763041150142,0.71809674,102290.0,102270.0,0.19556077]
[1763041150143,0.28513148,102290.0,102270.0,0.19556077]
[1763041150359,0.28513148,102290.0,102280.0,0.19554165]
[1763041150608,0.04272,102290.0,102280.0,0.19554165]
[1763041150867,6.20233329,102300.0,102290.0,0.19552253]
[1763041150868,5.9970547,102300.0,102290.0,0.19552253]
[1763041151087,6.23531812,102300.0,102280.0,0.19554165]
[1763041151301,0.19552253,102290.0,102270.0,0.2053388]
[1763041151519,6.66853033,102300.0,102280.0,0.19554087]
[1763041151732,6.76492981,102300.0,102280.0,0.19554087]
[1763041151941,0.19552253,102290.0,102270.0,0.2480988]
[1763041152177,6.76792981,102300.0,102280.0,0.19554165]
[1763041152389,6.76492981,102300.0,102280.0,0.19554165]
[1763041152593,6.33196455,102300.0,102290.0,0.19552253]
[1763041152811,6.23756507,102300.0,102290.0,0.19552253]
[1763041153438,6.04206165,102300.0,102290.0,0.19552253]
[1763041153650,6.04006165,102300.0,102290.0,0.19552253]
[1763041153854,6.04002165,102300.0,102290.0,0.21552253]
[1763041154086,6.23552507,102300.0,102290.0,0.19552253]
[1763041154300,6.33192455,102300.0,102280.0,0.19554165]
[1763041154507,0.19552253,102290.0,102280.0,0.19554165]
[1763041155155,6.76888981,102300.0,102280.0,0.19554165]
[1763041155375,5.99830165,102300.0,102290.0,0.62848779]
[1763041155586,6.04106165,102300.0,102290.0,0.62848779]
[1763041155803,5.99730165,102300.0,102290.0,0.69124779]
[1763041156269,5.99730165,102300.0,102290.0,0.67124779]
[1763041156480,5.99730165,102300.0,102290.0,0.69124779]
[1763041156706,5.99730165,102300.0,102290.0,0.78764727]
[1763041156923,6.00030165,102300.0,102290.0,0.23828253]
[1763041157143,6.00030165,102300.0,102290.0,0.25828253]
[1763041157397,6.00030165,102300.0,102290.0,0.23828253]
[1763041157617,6.00030165,102300.0,102290.0,0.31654893]
[1763041157842,6.00030165,102300.0,102290.0,0.74951419]
[1763041158074,6.00130165,102300.0,102290.0,0.74951419]
[1763041158298,5.99830165,102300.0,102290.0,0.31654893]
[1763041158509,5.99730165,102300.0,102290.0,0.31654893]
[1763041158740,5.99730165,102300.0,102290.0,0.23828253]
[1763041158741,6.09470113,102300.0,102290.0,0.23828253]
[1763041158952,5.99830165,102300.0,102290.0,0.23828253]
[1763041159175,5.99830165,102300.0,102290.0,0.21552253]
[1763041159584,5.99830165,102300.0,102290.0,0.19552253]
[1763041160227,6.19380507,102300.0,102290.0,0.19552253]
[1763041160456,6.29020455,102300.0,102290.0,0.19552253]
[1763041160683,6.04102165,102300.0,102280.0,0.23826165]
[1763041160888,6.04102165,102300.0,102290.0,0.19552253]
[1763041161513,6.04102165,102300.0,102290.0,0.21552253]
[1763041161734,6.04102165,102300.0,102290.0,0.19552253]
[1763041161944,6.33292455,102300.0,102290.0,0.19552253]
[1763041162146,6.33292455,102300.0,102280.0,0.23826165]
[1763041162356,6.33292455,102300.0,102290.0,0.19552253]
[1763041162564,6.04002165,102300.0,102290.0,0.19552253]
[1763041163584,6.04002165,102300.0,102290.0,0.21552253]
[1763041163790,5.99730165,102300.0,102290.0,0.62848779]
[1763041163992,5.99830165,102300.0,102290.0,0.72675419]
[1763041164216,5.99830165,102300.0,102290.0,0.29378893]
[1763041165314,5.99830165,102300.0,102290.0,0.70675419]
[1763041165557,5.99830165,102300.0,102290.0,0.72675419]
[1763041165772,5.99830165,102300.0,102290.0,0.27378893]
[1763041165942,5.99830165,102300.0,102290.0,0.19552253]
[1763041166158,5.99830165,102300.0,102290.0,0.21552253]
[1763041166591,6.19380507,102300.0,102290.0,0.19552253]
[1763041167019,5.99830165,102300.0,102290.0,0.21552253]
[1763041167219,5.99830165,102300.0,102290.0,0.19552253]
[1763041167460,5.99830165,102300.0,102290.0,0.21552253]
[1763041167923,5.99830165,102300.0,102290.0,0.73716246]
[1763041168162,5.99830165,102300.0,102290.0,0.81542886]
[1763041168389,5.99830165,102300.0,102290.0,0.19552253]
[1763041169003,5.99830165,102300.0,102290.0,0.70675419]
[1763041169204,5.99830165,102300.0,102290.0,1.04975419]
[1763041169433,5.99830165,102300.0,102290.0,1.02975419]
[1763041169649,5.99830165,102300.0,102290.0,1.04975419]
[1763041169861,5.99730165,102300.0,102290.0,1.14615367]
[1763041170314,5.99730165,102300.0,102290.0,1.14715367]
[1763041170553,5.99730165,102300.0,102290.0,1.12715367]
[1763041170756,5.52611404,102300.0,102290.0,1.15815366]
[1763041170977,5.10559992,102300.0,102290.0,1.15815366]
[1763041171202,4.44093729,102300.0,102290.0,3.53091279]
[1763041171422,4.44093729,102300.0,102290.0,3.57433153]
[1763041171423,3.82572957,102300.0,102290.0,3.57433153]
[1763041171636,3.82572957,102300.0,102290.0,3.70963182]
[1763041171637,2.60317083,102300.0,102290.0,3.70963182]
[1763041171921,2.41634613,102300.0,102290.0,3.90963182]
[1763041172191,2.06988272,102300.0,102290.0,3.70863182]
[1763041172403,1.46289856,102300.0,102290.0,3.87053956]
[1763041172614,1.293183,102300.0,102290.0,3.92273291]
[1763041172873,1.293183,102300.0,102290.0,3.92573291]
[1763041173141,1.293183,102300.0,102290.0,4.30453955]
[1763041173363,0.62920333,102300.0,102290.0,4.30153955]
[1763041173600,0.4007757,102300.0,102290.0,4.30153955]